[Event "6th Cesme Open-A 2018"]
[Site "Cesme"]
[Date "2018.06.29"]
[Round "6.7"]
[White "Kovchan, Alexander"]
[Black "Guseynov, Alihan"]
[Result "1/2-1/2"]
[ECO "B39"]
[WhiteElo "2572"]
[BlackElo "2341"]
[Annotator "ChessBase"]
[PlyCount "176"]
[EventDate "2018.06.26"]
[EventType "swiss"]
[EventCountry "TUR"]
[SourceTitle "playchess.com"]
[Source "ChessBase"]
[SourceQuality "1"]
[TimeControl "5400+30"]

1. c4 {[%emt 0:00:30]} c5 {[%emt 0:02:00]} 2. Nf3 {[%emt 0:00:30]} g6 {[%emt 0:02:30]} 3. d4 {[%emt 0:00:30]} Bg7 {[%emt 0:02:30]} 4. e4 {[%emt 0:01:30]} cxd4 {[%emt 0:01:30]} 5. Nxd4 {[%emt 0:00:00]} Nc6 {[%emt 0:00:30]} 6. Be3 {[%emt 0:00:00]} Nf6 {[%emt 0:00:30]} 7. Nc3 {[%emt 0:00:00]} Ng4 {[%emt 0:05:30]} 8. Qxg4 {[%emt 0:01:00]} Nxd4 {[%emt 0:01:30]} 9. Qd1 {[%emt 0:00:00]} e5 {[%emt 0:01:30]} 10. Bd3 {[%emt 0:01:00]} O-O {[%emt 0:00:00]} 11. O-O {[%emt 0:00:30]} d6 {[%emt 0:00:00]} 12. Qd2 {[%emt 0:02:30]} Be6 {[%emt 0:06:30]} 13. Nd5 {[%emt 0:01:30]} Bxd5 {[%emt 0:07:30]} 14. cxd5 {[%emt 0:00:30]} f5 {[%emt 0:07:30]} 15. f3 {[%emt 0:05:30]} fxe4 {[%emt 0:12:30]} 16. Bxe4 {[%emt 0:03:30]} Nf5 {[%emt 0:13:30]} 17. Bf2 {[%emt 0:00:30]} Bh6 {[%emt 0:01:30]} 18. Qd3 {[%emt 0:02:30]} Qa5 {[%emt 0:04:30]} 19. Rfd1 {[%emt 0:01:30]} Rac8 {[%emt 0:01:30]} 20. a3 {[%emt 0:02:30]} Qa4 {[%emt 0:04:30]} 21. b3 {[%emt 0:14:30]} Qa5 {[%emt 0:02:30]} 22. b4 {[%emt 0:00:30]} Qa4 {[%emt 0:01:30]} 23. h4 {[%emt 0:02:30]} Bf4 {[%emt 0:03:34]} 24. h5 {[%emt 0:00:30]} Kg7 {[%emt 0:02:06]} 25. Rab1 {[%emt 0:10:30]} Rf6 {[%emt 0:06:11]} 26. b5 {[%emt 0:17:30]} Ng3 {[%emt 0:03:23]} 27. Rb4 {[%emt 0:04:30]} Qa5 {[%emt 0:00:17]} 28. b6 {[%emt 0:01:30]} a6 {[%emt 0:01:54]} 29. Rc4 {[%emt 0:08:25]} Rxc4 {[%emt 0:00:35]} 30. Qxc4 {[%emt 0:00:02]} Nxe4 {[%emt 0:00:28]} 31. Qxe4 {[%emt 0:00:40]} Qxa3 {[%emt 0:00:31]} 32. g3 {[%emt 0:02:28]} Bg5 {[%emt 0:01:36]} 33. Kg2 {[%emt 0:00:02]} Qb3 {[%emt 0:02:56]} 34. Rh1 {[%emt 0:01:02]} Rf5 {[%emt 0:01:06]} 35. h6+ {[%emt 0:02:56]} Bxh6 {[%emt 0:00:39]} 36. f4 {[%emt 0:03:19]} Bxf4 {[%emt 0:00:08]} 37. gxf4 {[%emt 0:04:07]} Rxf4 {[%emt 0:00:02]} 38. Qe2 {[%emt 0:00:39]} Qxd5+ {[%emt 0:00:30]} 39. Kh2 {[%emt 0:00:00]} Rf5 {[%emt 0:01:07]} 40. Rg1 {[%emt 0:00:49]} Kf7 {[%emt 0:01:11]} 41. Rg4 {[%emt 0:01:48]} Rh5+ {[%emt 0:00:58]} 42. Kg3 {[%emt 0:00:27]} Qh1 {[%emt 0:00:13]} 43. Qf3+ {[%emt 0:01:26]} Qxf3+ {[%emt 0:00:30]} 44. Kxf3 {[%emt 0:00:00]} d5 {[%emt 0:00:16]} 45. Rg1 {[%emt 0:00:47]} Ke6 {[%emt 0:00:35]} 46. Rc1 {[%emt 0:00:30]} Rf5+ {[%emt 0:00:30]} 47. Ke2 {[%emt 0:00:00]} Rf7 {[%emt 0:00:36]} 48. Rc8 {[%emt 0:00:32]} d4 {[%emt 0:00:28]} 49. Bg3 {[%emt 0:01:18]} Re7 {[%emt 0:00:33]} 50. Bh4 {[%emt 0:01:12]} Rd7 {[%emt 0:00:20]} 51. Re8+ {[%emt 0:00:30]} Kd5 {[%emt 0:00:26]} 52. Bg3 {[%emt 0:02:57]} e4 {[%emt 0:00:29]} 53. Bc7 {[%emt 0:00:19]} d3+ {[%emt 0:00:38]} 54. Ke3 {[%emt 0:00:13]} Kc5 {[%emt 0:00:20]} 55. Kd2 {[%emt 0:00:51]} Kd4 {[%emt 0:00:30]} 56. Bf4 {[%emt 0:00:12]} Rf7 {[%emt 0:00:45]} 57. Rd8+ {[%emt 0:00:41]} Kc5 {[%emt 0:00:30]} 58. Be3+ {[%emt 0:00:30]} Kc6 {[%emt 0:00:01]} 59. Kc3 {[%emt 0:01:47]} Rd7 {[%emt 0:01:02]} 60. Re8 {[%emt 0:00:44]} d2 {[%emt 0:00:30]} 61. Rc8+ {[%emt 0:00:50]} Kb5 {[%emt 0:00:13]} 62. Rc5+ {[%emt 0:00:20]} Kxb6 {[%emt 0:00:51]} 63. Rc4+ {[%emt 0:00:25]} Kb5 {[%emt 0:00:11]} 64. Rc5+ {[%emt 0:00:32]} Kb6 {[%emt 0:00:41]} 65. Re5+ {[%emt 0:01:00]} Kc6 {[%emt 0:00:30]} 66. Bxd2 {[%emt 0:00:00]} Rd3+ {[%emt 0:00:42]} 67. Kc2 {[%emt 0:00:00]} Rd6 {[%emt 0:00:41]} 68. Rxe4 {[%emt 0:00:02]} h5 {[%emt 0:00:00]} 69. Bf4 {[%emt 0:00:17]} Rf6 {[%emt 0:00:25]} 70. Kd3 {[%emt 0:00:00]} Rf5 {[%emt 0:00:24]} 71. Bb8 {[%emt 0:00:23]} g5 {[%emt 0:00:50]} 72. Re6+ {[%emt 0:00:02]} Kc5 {[%emt 0:00:31]} 73. Ke4 {[%emt 0:00:51]} Rd5 {[%emt 0:00:17]} 74. Rh6 {[%emt 0:00:37]} Rd4+ {[%emt 0:00:38]} 75. Ke3 {[%emt 0:00:36]} Rh4 {[%emt 0:00:13]} 76. Rf6 {[%emt 0:00:55]} Rh3+ {[%emt 0:00:59]} 77. Ke4 {[%emt 0:00:30]} g4 {[%emt 0:00:00]} 78. Be5 {[%emt 0:00:30]} a5 {[%emt 0:00:38]} 79. Bd4+ {[%emt 0:01:23]} Kc4 {[%emt 0:00:30]} 80. Be3 {[%emt 0:00:05]} b5 {[%emt 0:00:38]} 81. Rc6+ {[%emt 0:00:14]} Kb3 {[%emt 0:00:30]} 82. Rc5 {[%emt 0:00:30]} Kb4 {[%emt 0:00:23]} 83. Rc1 {[%emt 0:00:26]} a4 {[%emt 0:00:32]} 84. Rb1+ {[%emt 0:00:14]} Kc4 {[%emt 0:00:32]} 85. Rc1+ {[%emt 0:00:30]} Kb3 {[%emt 0:00:30]} 86. Rb1+ {[%emt 0:00:00]} Kc4 {[%emt 0:00:00]} 87. Rc1+ {[%emt 0:00:07]} Kb3 {[%emt 0:00:05]} 88. Rb1+ {[%emt 0:00:00]} Kc4 {[%emt 0:01:11]} 1/2-1/2

[Event "6th Cesme Open-A 2018"]
[Site "Cesme"]
[Date "2018.06.29"]
[Round "6.8"]
[White "Zeynalli, Rashad"]
[Black "Gadimbayli, Abdulla"]
[Result "0-1"]
[ECO "E17"]
[WhiteElo "2295"]
[BlackElo "2420"]
[Annotator "ChessBase"]
[PlyCount "76"]
[EventDate "2018.06.26"]
[EventType "swiss"]
[EventCountry "TUR"]
[SourceTitle "playchess.com"]
[Source "ChessBase"]
[SourceQuality "1"]
[TimeControl "5400+30"]

1. Nf3 {[%emt 0:00:30]} e6 {[%emt 0:09:00]} 2. c4 {[%emt 0:00:30]} Nf6 {[%emt 0:00:30]} 3. g3 {[%emt 0:00:00]} b6 {[%emt 0:00:00]} 4. Bg2 {[%emt 0:00:00]} Bb7 {[%emt 0:00:00]} 5. O-O {[%emt 0:00:30]} Be7 {[%emt 0:00:30]} 6. Nc3 {[%emt 0:00:00]} O-O {[%emt 0:01:30]} 7. Re1 {[%emt 0:01:00]} d5 {[%emt 0:11:30]} 8. cxd5 {[%emt 0:01:30]} exd5 {[%emt 0:04:30]} 9. d4 {[%emt 0:01:30]} Nbd7 {[%emt 0:09:30]} 10. Bf4 {[%emt 0:03:30]} c5 {[%emt 0:09:30]} 11. Rc1 {[%emt 0:02:30]} Ne4 {[%emt 0:06:30]} 12. dxc5 {[%emt 0:06:30]} Bxc5 {[%emt 0:03:30]} 13. Nd4 {[%emt 0:03:30]} Nxc3 {[%emt 0:10:30]} 14. Rxc3 {[%emt 0:04:30]} Nf6 {[%emt 0:04:30]} 15. a3 {[%emt 0:14:30]} Ne4 {[%emt 0:01:30]} 16. Rc1 {[%emt 0:01:30]} Qf6 {[%emt 0:02:30]} 17. Be3 {[%emt 0:01:30]} a5 {[%emt 0:00:00]} 18. Qa4 {[%emt 0:02:30]} Rfe8 {[%emt 0:02:00]} 19. Red1 {[%emt 0:07:30]} Ba6 {[%emt 0:01:30]} 20. Bf3 {[%emt 0:06:30]} Bxe2 {[%emt 0:03:34]} 21. Bxe2 {[%emt 0:04:30]} Nxf2 {[%emt 0:00:10]} 22. Qb3 {[%emt 0:03:30]} Nxd1 {[%emt 0:05:42]} 23. Rxd1 {[%emt 0:00:30]} Re4 {[%emt 0:00:46]} 24. Qxd5 {[%emt 0:05:30]} Rae8 {[%emt 0:00:36]} 25. b4 {[%emt 0:04:30]} axb4 {[%emt 0:09:17]} 26. axb4 {[%emt 0:00:00]} Rxe3 {[%emt 0:00:08]} 27. bxc5 {[%emt 0:01:00]} R3e5 {[%emt 0:00:04]} 28. Qa2 {[%emt 0:08:52]} Re4 {[%emt 0:03:13]} 29. Bc4 {[%emt 0:03:11]} Rd8 {[%emt 0:00:42]} 30. c6 {[%emt 0:02:31]} Rexd4 {[%emt 0:00:30]} 31. Rf1 {[%emt 0:00:00]} Qxc6 {[%emt 0:01:36]} 32. Bxf7+ {[%emt 0:03:02]} Kh8 {[%emt 0:00:00]} 33. Bb3 {[%emt 0:00:30]} Qc5 {[%emt 0:00:35]} 34. Kh1 {[%emt 0:00:00]} Rd2 {[%emt 0:01:07]} 35. Qa4 {[%emt 0:00:18]} Qh5 {[%emt 0:00:00]} 36. Qh4 {[%emt 0:02:24]} Qxh4 {[%emt 0:00:21]} 37. gxh4 {[%emt 0:00:00]} Rb2 {[%emt 0:00:15]} 38. Rf3 {[%emt 0:00:39]} Ra8 {[%emt 0:00:30]} 0-1

[Event "6th Cesme Open-A 2018"]
[Site "Cesme"]
[Date "2018.06.29"]
[Round "6.9"]
[White "Ozen, Deniz"]
[Black "Gunduz, Umut Erdem"]
[Result "1/2-1/2"]
[ECO "C84"]
[WhiteElo "2408"]
[BlackElo "2130"]
[Annotator "ChessBase"]
[PlyCount "106"]
[EventDate "2018.06.26"]
[EventType "swiss"]
[EventCountry "TUR"]
[SourceTitle "playchess.com"]
[Source "ChessBase"]
[SourceQuality "1"]
[TimeControl "5400+30"]

1. e4 {[%emt 0:00:30]} e5 {[%emt 0:06:00]} 2. Nf3 {[%emt 0:00:00]} Nc6 {[%emt 0:07:30]} 3. Bb5 {[%emt 0:00:00]} a6 {[%emt 0:00:30]} 4. Ba4 {[%emt 0:00:30]} Nf6 {[%emt 0:00:30]} 5. d3 {[%emt 0:00:30]} b5 {[%emt 0:00:30]} 6. Bb3 {[%emt 0:00:30]} Be7 {[%emt 0:00:30]} 7. Nc3 {[%emt 0:00:00]} d6 {[%emt 0:00:00]} 8. Nd5 {[%emt 0:00:00]} Na5 {[%emt 0:00:00]} 9. Nxe7 {[%emt 0:00:00]} Qxe7 {[%emt 0:00:30]} 10. O-O {[%emt 0:00:00]} O-O {[%emt 0:01:30]} 11. h3 {[%emt 0:07:30]} h6 {[%emt 0:07:30]} 12. Re1 {[%emt 0:01:30]} c5 {[%emt 0:07:30]} 13. Nh4 {[%emt 0:06:30]} c4 {[%emt 0:09:30]} 14. dxc4 {[%emt 0:00:00]} Nxc4 {[%emt 0:00:00]} 15. Qf3 {[%emt 0:06:00]} Rd8 {[%emt 0:11:00]} 16. c3 {[%emt 0:09:30]} d5 {[%emt 0:10:30]} 17. Nf5 {[%emt 0:03:30]} Bxf5 {[%emt 0:01:30]} 18. exf5 {[%emt 0:00:30]} e4 {[%emt 0:01:30]} 19. Qf4 {[%emt 0:09:30]} Ne5 {[%emt 0:04:30]} 20. Re2 {[%emt 0:13:30]} Nh5 {[%emt 0:04:30]} 21. Qe3 {[%emt 0:03:30]} Qf6 {[%emt 0:01:30]} 22. a4 {[%emt 0:08:30]} b4 {[%emt 0:04:30]} 23. Rd2 {[%emt 0:08:30]} Nd3 {[%emt 0:02:34]} 24. Rxd3 {[%emt 0:04:30]} exd3 {[%emt 0:00:45]} 25. Qxd3 {[%emt 0:00:06]} bxc3 {[%emt 0:06:19]} 26. bxc3 {[%emt 0:00:30]} Qe5 {[%emt 0:00:30]} 27. Be3 {[%emt 0:00:30]} Nf6 {[%emt 0:00:30]} 28. Bd4 {[%emt 0:00:30]} Qe4 {[%emt 0:01:32]} 29. Bc2 {[%emt 0:03:43]} Qxd3 {[%emt 0:01:43]} 30. Bxd3 {[%emt 0:00:30]} Ne4 {[%emt 0:00:30]} 31. f3 {[%emt 0:01:15]} Nd2 {[%emt 0:00:15]} 32. Be3 {[%emt 0:04:34]} Nc4 {[%emt 0:03:00]} 33. Bd4 {[%emt 0:00:01]} Rab8 {[%emt 0:00:18]} 34. f6 {[%emt 0:02:09]} g6 {[%emt 0:00:33]} 35. Re1 {[%emt 0:03:09]} Re8 {[%emt 0:00:44]} 36. Re7 {[%emt 0:00:21]} Rxe7 {[%emt 0:02:06]} 37. fxe7 {[%emt 0:00:01]} f5 {[%emt 0:00:41]} 38. Bc5 {[%emt 0:02:19]} Kf7 {[%emt 0:01:04]} 39. g4 {[%emt 0:00:00]} Rc8 {[%emt 0:00:46]} 40. Bd4 {[%emt 0:00:34]} f4 {[%emt 0:03:21]} 41. h4 {[%emt 0:00:58]} Rc6 {[%emt 0:00:01]} 42. Bg7 {[%emt 0:00:24]} Kxe7 {[%emt 0:01:41]} 43. Bxh6 {[%emt 0:00:07]} Ne5 {[%emt 0:00:36]} 44. Be2 {[%emt 0:00:01]} Rxc3 {[%emt 0:01:24]} 45. Bxf4 {[%emt 0:00:30]} Nxf3+ {[%emt 0:00:30]} 46. Kf2 {[%emt 0:00:00]} Nd4 {[%emt 0:00:11]} 47. Bg5+ {[%emt 0:00:00]} Kf7 {[%emt 0:00:42]} 48. Bxa6 {[%emt 0:00:00]} Ne6 {[%emt 0:00:07]} 49. Bd2 {[%emt 0:00:32]} Rc2 {[%emt 0:00:31]} 50. Ke1 {[%emt 0:02:04]} Ra2 {[%emt 0:00:22]} 51. Bb7 {[%emt 0:02:06]} Rxa4 {[%emt 0:00:52]} 52. Bxd5 {[%emt 0:00:30]} Rxg4 {[%emt 0:00:30]} 53. Bg5 {[%emt 0:00:00]} Rxg5 {[%emt 0:00:00]} 1/2-1/2

[Event "6th Cesme Open-A 2018"]
[Site "Cesme"]
[Date "2018.06.29"]
[Round "6.10"]
[White "Agdelen, Huseyin Can"]
[Black "Danin, Alexandre"]
[Result "0-1"]
[ECO "C14"]
[WhiteElo "2276"]
[BlackElo "2539"]
[Annotator "ChessBase"]
[PlyCount "100"]
[EventDate "2018.06.26"]
[EventType "swiss"]
[EventCountry "TUR"]
[SourceTitle "playchess.com"]
[Source "ChessBase"]
[SourceQuality "1"]
[TimeControl "5400+30"]

1. e4 {[%emt 0:00:30]} e6 {[%emt 0:01:00]} 2. d4 {[%emt 0:00:30]} d5 {[%emt 0:00:30]} 3. Nc3 {[%emt 0:00:00]} Nf6 {[%emt 0:00:00]} 4. Bg5 {[%emt 0:00:00]} Be7 {[%emt 0:00:00]} 5. e5 {[%emt 0:00:30]} Nfd7 {[%emt 0:00:30]} 6. h4 {[%emt 0:00:30]} c5 {[%emt 0:00:00]} 7. Bxe7 {[%emt 0:00:30]} Kxe7 {[%emt 0:00:00]} 8. Nf3 {[%emt 0:00:30]} cxd4 {[%emt 0:00:00]} 9. Qxd4 {[%emt 0:00:30]} Nc6 {[%emt 0:00:00]} 10. Qf4 {[%emt 0:00:30]} Qc7 {[%emt 0:00:00]} 11. O-O-O {[%emt 0:01:30]} Ndxe5 {[%emt 0:00:00]} 12. Kb1 {[%emt 0:01:30]} Qb8 {[%emt 0:04:30]} 13. h5 {[%emt 0:23:30]} f6 {[%emt 0:24:30]} 14. h6 {[%emt 0:39:30]} g5 {[%emt 0:02:30]} 15. Nxg5 {[%emt 0:06:30]} Nf7 {[%emt 0:01:30]} 16. Qxb8 {[%emt 0:08:48]} Rxb8 {[%emt 0:00:30]} 17. Nxf7 {[%emt 0:02:51]} Kxf7 {[%emt 0:00:30]} 18. g3 {[%emt 0:00:30]} Bd7 {[%emt 0:00:30]} 19. Be2 {[%emt 0:00:30]} Rbd8 {[%emt 0:00:30]} 20. Bh5+ {[%emt 0:00:30]} Kf8 {[%emt 0:00:30]} 21. Rhe1 {[%emt 0:00:30]} Rg8 {[%emt 0:00:30]} 22. Ne2 {[%emt 0:00:30]} Rg5 {[%emt 0:00:30]} 23. Nf4 {[%emt 0:04:18]} Re5 {[%emt 0:14:30]} 24. Be2 {[%emt 0:03:15]} Ke7 {[%emt 0:07:30]} 25. Bd3 {[%emt 0:01:48]} Rh8 {[%emt 0:00:30]} 26. a3 {[%emt 0:00:44]} Rxe1 {[%emt 0:01:30]} 27. Rxe1 {[%emt 0:00:30]} Ne5 {[%emt 0:00:30]} 28. Be2 {[%emt 0:01:31]} Be8 {[%emt 0:04:30]} 29. Bf1 {[%emt 0:00:42]} Kd6 {[%emt 0:00:30]} 30. Bh3 {[%emt 0:00:43]} Bf7 {[%emt 0:00:30]} 31. b3 {[%emt 0:00:29]} b5 {[%emt 0:03:30]} 32. Kb2 {[%emt 0:00:09]} a6 {[%emt 0:00:30]} 33. Re3 {[%emt 0:01:21]} Re8 {[%emt 0:00:30]} 34. Re1 {[%emt 0:00:09]} Rg8 {[%emt 0:10:30]} 35. Re3 {[%emt 0:00:28]} a5 {[%emt 0:08:55]} 36. Ka2 {[%emt 0:00:32]} Ng4 {[%emt 0:08:08]} 37. Bxg4 {[%emt 0:00:16]} Rxg4 {[%emt 0:00:00]} 38. Rc3 {[%emt 0:00:29]} e5 {[%emt 0:00:40]} 39. Nd3 {[%emt 0:00:13]} Be6 {[%emt 0:01:25]} 40. Nc5 {[%emt 0:00:53]} Bc8 {[%emt 0:02:37]} 41. Na4 {[%emt 0:00:38]} Bf5 {[%emt 0:00:48]} 42. Nc5 {[%emt 0:00:09]} d4 {[%emt 0:02:28]} 43. Nb7+ {[%emt 0:00:30]} Kd7 {[%emt 0:00:30]} 44. Rc5 {[%emt 0:00:00]} Re4 {[%emt 0:00:00]} 45. Nxa5 {[%emt 0:01:17]} Re2 {[%emt 0:00:00]} 46. Kb2 {[%emt 0:00:42]} Rxf2 {[%emt 0:00:32]} 47. g4 {[%emt 0:00:20]} Bg6 {[%emt 0:01:04]} 48. g5 {[%emt 0:00:07]} fxg5 {[%emt 0:00:36]} 49. Rxe5 {[%emt 0:00:28]} Rxc2+ {[%emt 0:00:15]} 50. Ka1 {[%emt 0:00:02]} d3 {[%emt 0:00:43]} 0-1

[Event "6th Cesme Open-A 2018"]
[Site "Cesme"]
[Date "2018.06.29"]
[Round "6.11"]
[White "Haznedaroglu, Kivanc"]
[Black "Allajov, Ramil"]
[Result "1/2-1/2"]
[ECO "D37"]
[WhiteElo "2472"]
[BlackElo "2168"]
[Annotator "ChessBase"]
[PlyCount "102"]
[EventDate "2018.06.26"]
[EventType "swiss"]
[EventCountry "TUR"]
[SourceTitle "playchess.com"]
[Source "ChessBase"]
[SourceQuality "1"]
[TimeControl "5400+30"]

1. c4 {[%emt 0:00:30]} Nf6 {[%emt 0:01:00]} 2. Nc3 {[%emt 0:00:30]} e6 {[%emt 0:00:00]} 3. Nf3 {[%emt 0:00:30]} d5 {[%emt 0:00:00]} 4. d4 {[%emt 0:00:00]} Be7 {[%emt 0:00:30]} 5. Bf4 {[%emt 0:02:00]} O-O {[%emt 0:00:30]} 6. e3 {[%emt 0:00:30]} dxc4 {[%emt 0:06:30]} 7. Bxc4 {[%emt 0:04:30]} Nd5 {[%emt 0:00:00]} 8. Bg3 {[%emt 0:00:00]} Nxc3 {[%emt 0:01:00]} 9. bxc3 {[%emt 0:00:00]} c5 {[%emt 0:00:30]} 10. O-O {[%emt 0:00:30]} Nc6 {[%emt 0:00:30]} 11. Qe2 {[%emt 0:05:30]} Qa5 {[%emt 0:06:30]} 12. Rac1 {[%emt 0:00:00]} a6 {[%emt 0:01:30]} 13. e4 {[%emt 0:05:00]} b5 {[%emt 0:02:30]} 14. Bd3 {[%emt 0:03:30]} c4 {[%emt 0:04:30]} 15. Bb1 {[%emt 0:04:30]} Ba3 {[%emt 0:00:00]} 16. d5 {[%emt 0:05:30]} Bxc1 {[%emt 0:07:00]} 17. Rxc1 {[%emt 0:00:30]} Nd8 {[%emt 0:03:30]} 18. d6 {[%emt 0:06:30]} f6 {[%emt 0:00:30]} 19. e5 {[%emt 0:00:30]} f5 {[%emt 0:00:30]} 20. Nd4 {[%emt 0:01:30]} Qa3 {[%emt 0:01:30]} 21. Qe3 {[%emt 0:00:30]} Bd7 {[%emt 0:06:30]} 22. Bh4 {[%emt 0:02:30]} Nc6 {[%emt 0:07:30]} 23. Nxc6 {[%emt 0:05:30]} Bxc6 {[%emt 0:00:30]} 24. Rd1 {[%emt 0:00:30]} Qa4 {[%emt 0:06:30]} 25. Qd4 {[%emt 0:03:30]} Rf7 {[%emt 0:03:30]} 26. Be7 {[%emt 0:02:30]} Bd5 {[%emt 0:02:30]} 27. h3 {[%emt 0:03:30]} b4 {[%emt 0:00:30]} 28. cxb4 {[%emt 0:01:30]} Qxb4 {[%emt 0:00:30]} 29. Bc2 {[%emt 0:00:30]} Qa3 {[%emt 0:06:30]} 30. Qb6 {[%emt 0:11:30]} c3 {[%emt 0:05:30]} 31. Qc7 {[%emt 0:03:30]} Qxa2 {[%emt 0:01:30]} 32. d7 {[%emt 0:02:30]} Rxe7 {[%emt 0:00:30]} 33. Bxf5 {[%emt 0:04:30]} exf5 {[%emt 0:09:37]} 34. d8=Q+ {[%emt 0:00:00]} Rxd8 {[%emt 0:00:30]} 35. Qxd8+ {[%emt 0:00:00]} Kf7 {[%emt 0:00:30]} 36. Rxd5 {[%emt 0:00:30]} c2 {[%emt 0:00:00]} 37. e6+ {[%emt 0:01:30]} Kg6 {[%emt 0:00:55]} 38. Rc5 {[%emt 0:00:30]} Rxe6 {[%emt 0:05:07]} 39. Qc8 {[%emt 0:00:30]} h5 {[%emt 0:07:11]} 40. Rxc2 {[%emt 0:00:30]} Qa1+ {[%emt 0:00:07]} 41. Kh2 {[%emt 0:01:30]} Qe5+ {[%emt 0:00:30]} 42. Kg1 {[%emt 0:00:30]} Qa1+ {[%emt 0:00:30]} 43. Kh2 {[%emt 0:00:00]} Qe5+ {[%emt 0:00:00]} 44. Kg1 {[%emt 0:00:00]} a5 {[%emt 0:00:00]} 45. Rc5 {[%emt 0:01:30]} Qe1+ {[%emt 0:00:33]} 46. Kh2 {[%emt 0:00:30]} Rf6 {[%emt 0:00:01]} 47. Qc7 {[%emt 0:21:30]} Re6 {[%emt 0:05:08]} 48. Qc8 {[%emt 0:00:30]} Rf6 {[%emt 0:00:30]} 49. Qc7 {[%emt 0:00:30]} Qxf2 {[%emt 0:00:34]} 50. Rxa5 {[%emt 0:00:00]} Qd4 {[%emt 0:01:01]} 51. Ra7 {[%emt 0:00:00]} Qd6+ {[%emt 0:00:00]} 1/2-1/2